[Event "Late-Titled-Tuesday-Blitz-February-06-2024"]
[Site "Chess.com"]
[Date "2024.02.06"]
[Round "8"]
[White "jaskol95"]
[Black "Igor_Lysyj"]
[Result "0-1"]
[WhiteElo "2586"]
[BlackElo "2867"]
[TimeControl "180+1"]
[EndTime "15:30:43 PST"]
[Termination "Igor_Lysyj won by checkmate"]

1. e4 {[%clk 0:03:00.9]} 1... e5 {[%clk 0:02:56.2]} 2. Nf3 {[%clk 0:03:01.1]}
2... Nc6 {[%clk 0:02:56.2]} 3. Bc4 {[%clk 0:03:01.5]} 3... Bc5 {[%clk
0:02:55.7]} 4. c3 {[%clk 0:03:01.4]} 4... Nf6 {[%clk 0:02:55.5]} 5. d4 {[%clk
0:03:01.7]} 5... exd4 {[%clk 0:02:55.5]} 6. cxd4 {[%clk 0:03:02.6]} 6... Bb4+
{[%clk 0:02:54.7]} 7. Kf1 {[%clk 0:03:02.9]} 7... d5 {[%clk 0:02:54]} 8. exd5
{[%clk 0:03:02.4]} 8... Nxd5 {[%clk 0:02:54.2]} 9. Nc3 {[%clk 0:03:02.6]} 9...
Be6 {[%clk 0:02:50.1]} 10. Qb3 {[%clk 0:02:57.1]} 10... Bxc3 {[%clk 0:02:42.6]}
11. bxc3 {[%clk 0:02:54.6]} 11... O-O {[%clk 0:02:35.9]} 12. Qc2 {[%clk
0:02:19.9]} 12... Ne3+ {[%clk 0:02:30.2]} 13. Bxe3 {[%clk 0:02:15.3]} 13...
Bxc4+ {[%clk 0:02:30.4]} 14. Kg1 {[%clk 0:02:15.9]} 14... h6 {[%clk 0:02:27.6]}
15. h4 {[%clk 0:02:15.4]} 15... Qf6 {[%clk 0:02:05.8]} 16. Rh3 {[%clk
0:02:02.8]} 16... Qg6 {[%clk 0:01:51.4]} 17. Qb2 {[%clk 0:01:40.4]} 17... Bd5
{[%clk 0:01:29.1]} 18. Rg3 {[%clk 0:01:40.1]} 18... Qe6 {[%clk 0:01:25.3]} 19.
Qxb7 {[%clk 0:01:16.9]} 19... Ne7 {[%clk 0:01:00.2]} 20. Qxc7 {[%clk 0:00:45.5]}
20... Nf5 {[%clk 0:01:00.3]} 21. Rh3 {[%clk 0:00:38.1]} 21... Rfc8 {[%clk
0:00:59.8]} 22. Qf4 {[%clk 0:00:34.1]} 22... Rxc3 {[%clk 0:00:58.1]} 23. Bd2
{[%clk 0:00:20.3]} 23... Rxf3 {[%clk 0:00:37.8]} 24. Rxf3 {[%clk 0:00:11.9]}
24... Bxf3 {[%clk 0:00:37.2]} 25. Qxf3 {[%clk 0:00:12.6]} 25... Rd8 {[%clk
0:00:34]} 26. Be3 {[%clk 0:00:12.1]} 26... Nxh4 {[%clk 0:00:32.7]} 27. Qf4
{[%clk 0:00:05.3]} 27... Ng6 {[%clk 0:00:29.9]} 28. Qc7 {[%clk 0:00:05.5]} 28...
Rd7 {[%clk 0:00:29.4]} 29. Qb8+ {[%clk 0:00:05.7]} 29... Kh7 {[%clk 0:00:29]}
30. Rc1 {[%clk 0:00:06.4]} 30... Qxa2 {[%clk 0:00:22.6]} 31. Rc8 {[%clk
0:00:06]} 31... Rd5 {[%clk 0:00:16.9]} 32. Qb7 {[%clk 0:00:05.6]} 32... Rf5
{[%clk 0:00:13.6]} 33. Qc7 {[%clk 0:00:05.2]} 33... Qb1+ {[%clk 0:00:12.7]} 34.
Kh2 {[%clk 0:00:05.2]} 34... Rh5+ {[%clk 0:00:12.4]} 35. Kg3 {[%clk 0:00:05.8]}
35... Qf5 {[%clk 0:00:11.6]} 36. f3 {[%clk 0:00:06.3]} 36... Qf6 {[%clk
0:00:10.7]} 37. Qd8 {[%clk 0:00:06]} 37... Qxd8 {[%clk 0:00:09.4]} 38. Rxd8
{[%clk 0:00:06.4]} 38... Ra5 {[%clk 0:00:07.9]} 39. Ra8 {[%clk 0:00:06.6]} 39...
Ne7 {[%clk 0:00:07.3]} 40. Kf4 {[%clk 0:00:06.6]} 40... Nd5+ {[%clk 0:00:07.4]}
41. Ke4 {[%clk 0:00:07.3]} 41... f5+ {[%clk 0:00:07.7]} 42. Kd3 {[%clk
0:00:02.8]} 42... Ra3+ {[%clk 0:00:08]} 43. Kc4 {[%clk 0:00:03.7]} 43... Nxe3+
{[%clk 0:00:08.2]} 44. Kb4 {[%clk 0:00:04.6]} 44... Rd3 {[%clk 0:00:07.7]} 45.
Kc5 {[%clk 0:00:04.7]} 45... Nxg2 {[%clk 0:00:07.7]} 46. d5 {[%clk 0:00:05]}
46... Nf4 {[%clk 0:00:06.9]} 47. d6 {[%clk 0:00:05.6]} 47... Rxf3 {[%clk
0:00:07.1]} 48. d7 {[%clk 0:00:05.8]} 48... Rd3 {[%clk 0:00:07.2]} 49. Kc6
{[%clk 0:00:06.1]} 49... g5 {[%clk 0:00:02.6]} 50. Re8 {[%clk 0:00:06.3]} 50...
Kg6 {[%clk 0:00:02.4]} 51. d8=Q {[%clk 0:00:06.8]} 51... Rxd8 {[%clk 0:00:02.1]}
52. Rxd8 {[%clk 0:00:07.7]} 52... g4 {[%clk 0:00:02.5]} 53. Kd6 {[%clk
0:00:08.3]} 53... Kg5 {[%clk 0:00:02.6]} 54. Ke5 {[%clk 0:00:08.9]} 54... Ng6+
{[%clk 0:00:02.9]} 55. Kd4 {[%clk 0:00:09]} 55... h5 {[%clk 0:00:03.5]} 56. Ke3
{[%clk 0:00:09.6]} 56... h4 {[%clk 0:00:04.1]} 57. Kf2 {[%clk 0:00:10.3]} 57...
h3 {[%clk 0:00:04.6]} 58. Kg3 {[%clk 0:00:10.8]} 58... f4+ {[%clk 0:00:04.9]}
59. Kh2 {[%clk 0:00:11.5]} 59... Nh4 {[%clk 0:00:04.9]} 60. Rg8+ {[%clk
0:00:11.7]} 60... Kf5 {[%clk 0:00:04.7]} 61. Rf8+ {[%clk 0:00:12.4]} 61... Ke5
{[%clk 0:00:04.8]} 62. Re8+ {[%clk 0:00:13.2]} 62... Kd6 {[%clk 0:00:04.7]} 63.
Ra8 {[%clk 0:00:13.4]} 63... Nf3+ {[%clk 0:00:04.4]} 64. Kh1 {[%clk 0:00:14]}
64... g3 {[%clk 0:00:04.8]} 65. Rd8+ {[%clk 0:00:14.1]} 65... Ke7 {[%clk
0:00:04.1]} 66. Rd7+ {[%clk 0:00:14.6]} 66... Ke6 {[%clk 0:00:04.6]} 67. Re7+
{[%clk 0:00:15.1]} 67... Kd5 {[%clk 0:00:04.7]} 68. Rd7+ {[%clk 0:00:15.7]}
68... Ke4 {[%clk 0:00:05]} 69. Re7+ {[%clk 0:00:15.5]} 69... Kd4 {[%clk
0:00:04.4]} 70. Rd7+ {[%clk 0:00:15.9]} 70... Ke3 {[%clk 0:00:04.3]} 71. Rd3+
{[%clk 0:00:16.3]} 71... Kf2 {[%clk 0:00:03.9]} 72. Rd2+ {[%clk 0:00:16.6]}
72... Kf1 {[%clk 0:00:04]} 73. Rd1+ {[%clk 0:00:16.9]} 73... Ne1 {[%clk
0:00:04.1]} 74. Rd3 {[%clk 0:00:12]} 74... g2+ {[%clk 0:00:04.2]} 75. Kh2 {[%clk
0:00:12.8]} 75... g1=Q+ {[%clk 0:00:04.4]} 76. Kxh3 {[%clk 0:00:13.5]} 76...
Qg2+ {[%clk 0:00:04.5]} 77. Kh4 {[%clk 0:00:14.2]} 77... Nxd3 {[%clk 0:00:04.8]}
78. Kh5 {[%clk 0:00:14.9]} 78... Qg3 {[%clk 0:00:04.8]} 79. Kh6 {[%clk
0:00:15.8]} 79... Ne5 {[%clk 0:00:04.9]} 80. Kh7 {[%clk 0:00:16.7]} 80... Qg5
{[%clk 0:00:04.6]} 81. Kh8 {[%clk 0:00:17.6]} 81... f3 {[%clk 0:00:04.2]} 82.
Kh7 {[%clk 0:00:18.2]} 82... Kf2 {[%clk 0:00:04.4]} 83. Kh8 {[%clk 0:00:19.1]}
83... Ke3 {[%clk 0:00:04.8]} 84. Kh7 {[%clk 0:00:20]} 84... Kf4 {[%clk
0:00:05.2]} 85. Kh8 {[%clk 0:00:20.9]} 85... Kf5 {[%clk 0:00:05.5]} 86. Kh7
{[%clk 0:00:21.8]} 86... Kf6 {[%clk 0:00:05.8]} 87. Kh8 {[%clk 0:00:22.7]} 87...
Qg7# {[%clk 0:00:05.9]} 0-1

[Event "Late-Titled-Tuesday-Blitz-February-06-2024"]
[Site "Chess.com"]
[Date "2024.02.06"]
[Round "8"]
[White "Polish_fighter3000"]
[Black "dretch"]
[Result "1-0"]
[WhiteElo "3050"]
[BlackElo "2841"]
[TimeControl "180+1"]
[EndTime "15:31:11 PST"]
[Termination "Polish_fighter3000 won on time"]

1. e4 {[%clk 0:03:00.9]} 1... e6 {[%clk 0:03:00]} 2. d4 {[%clk 0:03:00.3]} 2...
d5 {[%clk 0:03:00.4]} 3. Nc3 {[%clk 0:03:00.4]} 3... Nf6 {[%clk 0:02:58.6]} 4.
e5 {[%clk 0:02:58.6]} 4... Nfd7 {[%clk 0:02:58.7]} 5. Nce2 {[%clk 0:02:58.6]}
5... c5 {[%clk 0:02:58.1]} 6. c3 {[%clk 0:02:59.2]} 6... Nc6 {[%clk 0:02:57.1]}
7. f4 {[%clk 0:02:59.5]} 7... Qb6 {[%clk 0:02:55.8]} 8. Nf3 {[%clk 0:02:59.3]}
8... Be7 {[%clk 0:02:54.7]} 9. h4 {[%clk 0:02:50.5]} 9... f6 {[%clk 0:02:51.5]}
10. a3 {[%clk 0:02:42.4]} 10... a5 {[%clk 0:02:50.6]} 11. h5 {[%clk 0:02:40.2]}
11... a4 {[%clk 0:02:44.8]} 12. Neg1 {[%clk 0:01:37.6]} 12... Qb3 {[%clk
0:02:00.7]} 13. Bd3 {[%clk 0:01:26.2]} 13... Qxd1+ {[%clk 0:01:57.1]} 14. Kxd1
{[%clk 0:01:27.1]} 14... Na5 {[%clk 0:01:48.9]} 15. Ne2 {[%clk 0:01:23.8]} 15...
b6 {[%clk 0:01:42.6]} 16. Be3 {[%clk 0:01:01.9]} 16... Nc4 {[%clk 0:01:42.4]}
17. Bc1 {[%clk 0:00:59.7]} 17... Ba6 {[%clk 0:01:40.3]} 18. Kc2 {[%clk
0:00:56.8]} 18... f5 {[%clk 0:00:57.9]} 19. Bd2 {[%clk 0:00:44.3]} 19... Rc8
{[%clk 0:00:35.3]} 20. Rad1 {[%clk 0:00:38.8]} 20... cxd4 {[%clk 0:00:26.7]} 21.
Nexd4 {[%clk 0:00:34.3]} 21... Nc5 {[%clk 0:00:27.1]} 22. Bc1 {[%clk 0:00:26.1]}
22... Kf7 {[%clk 0:00:15.8]} 23. Be2 {[%clk 0:00:15.4]} 23... Ne4 {[%clk
0:00:15.8]} 24. Rh2 {[%clk 0:00:15.9]} 24... Ng3 {[%clk 0:00:14.8]} 25. Bd3
{[%clk 0:00:15.5]} 25... g6 {[%clk 0:00:14.3]} 26. h6 {[%clk 0:00:08.3]} 26...
Ne4 {[%clk 0:00:12.8]} 27. Ne2 {[%clk 0:00:05.4]} 27... Nc5 {[%clk 0:00:12.2]}
28. Ned4 {[%clk 0:00:04.2]} 28... Nxd3 {[%clk 0:00:12.7]} 29. Rxd3 {[%clk
0:00:05.1]} 29... Na5 {[%clk 0:00:13]} 30. Rd1 {[%clk 0:00:05.4]} 30... Nb7
{[%clk 0:00:13.1]} 31. Kb1 {[%clk 0:00:05]} 31... Nc5 {[%clk 0:00:13.5]} 32. Be3
{[%clk 0:00:05.1]} 32... Ne4 {[%clk 0:00:13.5]} 33. Rhh1 {[%clk 0:00:05.1]}
33... Bc5 {[%clk 0:00:13.9]} 34. Rc1 {[%clk 0:00:05.1]} 34... Rhd8 {[%clk
0:00:14]} 35. Ka1 {[%clk 0:00:05.2]} 35... Bc4 {[%clk 0:00:14.2]} 36. Rc2 {[%clk
0:00:04.7]} 36... Be7 {[%clk 0:00:14.3]} 37. Rcc1 {[%clk 0:00:04.7]} 37... Nc5
{[%clk 0:00:14.8]} 38. Rcd1 {[%clk 0:00:04.4]} 38... Bd3 {[%clk 0:00:15.1]} 39.
Bf2 {[%clk 0:00:03.8]} 39... Be4 {[%clk 0:00:15.6]} 40. Bh4 {[%clk 0:00:04.2]}
40... Rd7 {[%clk 0:00:14.2]} 41. Bxe7 {[%clk 0:00:04]} 41... Rxe7 {[%clk
0:00:15.1]} 42. Ng5+ {[%clk 0:00:04.5]} 42... Ke8 {[%clk 0:00:15.3]} 43. Rhg1
{[%clk 0:00:04.9]} 43... Nd3 {[%clk 0:00:13.1]} 44. g3 {[%clk 0:00:05]} 44...
Nf2 {[%clk 0:00:13]} 45. Rd2 {[%clk 0:00:05.3]} 45... Ng4 {[%clk 0:00:13.3]} 46.
Nb5 {[%clk 0:00:04.9]} 46... Rd8 {[%clk 0:00:12.8]} 47. Nd6+ {[%clk 0:00:05]}
47... Kf8 {[%clk 0:00:13.2]} 48. Ndxe4 {[%clk 0:00:05.3]} 48... fxe4 {[%clk
0:00:13.6]} 49. Nxe4 {[%clk 0:00:05.6]} 49... Nxh6 {[%clk 0:00:14.1]} 50. g4
{[%clk 0:00:04.3]} 50... Kg7 {[%clk 0:00:12.7]} 51. Nf6 {[%clk 0:00:03.5]} 51...
Rc8 {[%clk 0:00:12.7]} 52. Rh2 {[%clk 0:00:03.2]} 52... Rc4 {[%clk 0:00:06]} 53.
Rgh1 {[%clk 0:00:02.3]} 53... Nf7 {[%clk 0:00:06.7]} 54. Rxh7+ {[%clk
0:00:02.4]} 54... Kf8 {[%clk 0:00:07.3]} 55. Rf1 {[%clk 0:00:02.4]} 55... d4
{[%clk 0:00:06.5]} 56. cxd4 {[%clk 0:00:02.5]} 56... Rxd4 {[%clk 0:00:07.4]} 57.
Ka2 {[%clk 0:00:02.8]} 57... Rc7 {[%clk 0:00:07.7]} 58. f5 {[%clk 0:00:02.2]}
58... exf5 {[%clk 0:00:06.6]} 59. gxf5 {[%clk 0:00:03.1]} 59... gxf5 {[%clk
0:00:06.5]} 60. e6 {[%clk 0:00:03.5]} 60... Rd6 {[%clk 0:00:06.9]} 61. Nd7+
{[%clk 0:00:02.9]} 61... Ke7 {[%clk 0:00:06.9]} 62. exf7 {[%clk 0:00:02.3]}
62... Rcxd7 {[%clk 0:00:07]} 63. f8=Q+ {[%clk 0:00:03.2]} 63... Kxf8 {[%clk
0:00:07.3]} 64. Rxf5+ {[%clk 0:00:03.1]} 64... Kg8 {[%clk 0:00:07.8]} 65. Rh4
{[%clk 0:00:03.6]} 65... Rd5 {[%clk 0:00:07.6]} 66. Rg4+ {[%clk 0:00:03.5]}
66... Kh8 {[%clk 0:00:06.7]} 67. Rf3 {[%clk 0:00:03.9]} 67... Rh5 {[%clk
0:00:06.4]} 68. Rxa4 {[%clk 0:00:03.9]} 68... Kh7 {[%clk 0:00:06.6]} 69. Rf6
{[%clk 0:00:03.5]} 69... Rb7 {[%clk 0:00:06.3]} 70. Rb4 {[%clk 0:00:03.6]} 70...
Rh6 {[%clk 0:00:06.1]} 71. Rf5 {[%clk 0:00:03.7]} 71... Rc7 {[%clk 0:00:05.8]}
72. Rfb5 {[%clk 0:00:03.7]} 72... Rcc6 {[%clk 0:00:06.2]} 73. Kb3 {[%clk
0:00:03.7]} 73... Kg7 {[%clk 0:00:06.8]} 74. Ka4 {[%clk 0:00:04]} 74... Kf7
{[%clk 0:00:07.1]} 75. Re5 {[%clk 0:00:04.1]} 75... Rcd6 {[%clk 0:00:06.1]} 76.
Kb5 {[%clk 0:00:04.1]} 76... Rdf6 {[%clk 0:00:05.9]} 77. Ka6 {[%clk 0:00:04.2]}
77... Rc6 {[%clk 0:00:05.3]} 78. Reb5 {[%clk 0:00:04.5]} 78... Rc2 {[%clk
0:00:04.5]} 79. Rxb6 {[%clk 0:00:04.6]} 79... Rh8 {[%clk 0:00:04.6]} 80. Rb7+
{[%clk 0:00:04.9]} 80... Ke6 {[%clk 0:00:04.8]} 81. Rb8 {[%clk 0:00:04.8]} 81...
Rhh2 {[%clk 0:00:04.2]} 82. a4 {[%clk 0:00:04.9]} 82... Kd7 {[%clk 0:00:04.1]}
83. a5 {[%clk 0:00:05.3]} 83... Rc5 {[%clk 0:00:03.6]} 84. R4b7+ {[%clk
0:00:03.3]} 84... Kd6 {[%clk 0:00:03.3]} 85. b4 {[%clk 0:00:04.2]} 85... Rch5
{[%clk 0:00:02.7]} 86. Ka7 {[%clk 0:00:04.2]} 86... Ra2 {[%clk 0:00:03.3]} 87.
a6 {[%clk 0:00:04.3]} 87... Kd5 {[%clk 0:00:02.6]} 88. b5 {[%clk 0:00:04.8]}
88... Kc5 {[%clk 0:00:02.8]} 89. Ka8 {[%clk 0:00:04.5]} 89... Kb4 {[%clk
0:00:02.7]} 90. a7 {[%clk 0:00:05.1]} 90... Rh6 {[%clk 0:00:02]} 91. b6 {[%clk
0:00:05.4]} 91... Kb5 {[%clk 0:00:02.2]} 92. Rg8 {[%clk 0:00:02.9]} 92... Ra6
{[%clk 0:00:02.2]} 93. Kb8 {[%clk 0:00:02.7]} 1-0

[Event "Late-Titled-Tuesday-Blitz-February-06-2024"]
[Site "Chess.com"]
[Date "2024.02.06"]
[Round "9"]
[White "temiksmozg"]
[Black "GiorgianBarbosa"]
[Result "0-1"]
[WhiteElo "2592"]
[BlackElo "2495"]
[TimeControl "180+1"]
[EndTime "15:39:26 PST"]
[Termination "GiorgianBarbosa won by resignation"]

1. e4 {[%clk 0:02:48.9]} 1... c5 {[%clk 0:02:56.4]} 2. Nf3 {[%clk 0:02:48.7]}
2... g6 {[%clk 0:02:57.3]} 3. c3 {[%clk 0:02:47.2]} 3... Bg7 {[%clk 0:02:56.1]}
4. d4 {[%clk 0:02:47.6]} 4... cxd4 {[%clk 0:02:57]} 5. cxd4 {[%clk 0:02:47.9]}
5... d5 {[%clk 0:02:57.5]} 6. e5 {[%clk 0:02:48]} 6... Bg4 {[%clk 0:02:57.7]} 7.
h3 {[%clk 0:02:47.1]} 7... Bxf3 {[%clk 0:02:55.7]} 8. Qxf3 {[%clk 0:02:48]} 8...
Nc6 {[%clk 0:02:55.8]} 9. Bb5 {[%clk 0:02:48.1]} 9... e6 {[%clk 0:02:54.4]} 10.
Nc3 {[%clk 0:02:44.5]} 10... Ne7 {[%clk 0:02:52.3]} 11. Bg5 {[%clk 0:02:44.9]}
11... h6 {[%clk 0:02:44.4]} 12. Bf6 {[%clk 0:02:34.5]} 12... O-O {[%clk
0:02:35.4]} 13. Bxc6 {[%clk 0:02:31.9]} 13... bxc6 {[%clk 0:02:33]} 14. O-O
{[%clk 0:02:32.4]} 14... Bxf6 {[%clk 0:02:31.2]} 15. exf6 {[%clk 0:02:27.4]}
15... Nf5 {[%clk 0:02:25.7]} 16. g4 {[%clk 0:02:26.8]} 16... Nxd4 {[%clk
0:02:19.1]} 17. Qf4 {[%clk 0:02:26.4]} 17... e5 {[%clk 0:02:18.9]} 18. Qxe5
{[%clk 0:02:24.7]} 18... Nf3+ {[%clk 0:02:17.9]} 0-1

[Event "Late-Titled-Tuesday-Blitz-February-06-2024"]
[Site "Chess.com"]
[Date "2024.02.06"]
[Round "9"]
[White "BelaKis"]
[Black "Ze-Pequeno"]
[Result "1-0"]
[WhiteElo "2234"]
[BlackElo "2112"]
[TimeControl "180+1"]
[EndTime "15:39:30 PST"]
[Termination "BelaKis won by resignation"]

1. d4 {[%clk 0:02:55.5]} 1... Nf6 {[%clk 0:02:59.5]} 2. c4 {[%clk 0:02:54.9]}
2... e6 {[%clk 0:02:59.7]} 3. a3 {[%clk 0:02:54.1]} 3... d5 {[%clk 0:02:59]} 4.
Nc3 {[%clk 0:02:53.1]} 4... dxc4 {[%clk 0:02:58.4]} 5. e3 {[%clk 0:02:53]} 5...
a6 {[%clk 0:02:57.9]} 6. Bxc4 {[%clk 0:02:52.8]} 6... c5 {[%clk 0:02:58.5]} 7.
Nf3 {[%clk 0:02:52.5]} 7... b5 {[%clk 0:02:57.7]} 8. Bd3 {[%clk 0:02:52.2]} 8...
Bb7 {[%clk 0:02:58.4]} 9. dxc5 {[%clk 0:02:50.8]} 9... Bxc5 {[%clk 0:02:57]} 10.
b4 {[%clk 0:02:51.3]} 10... Be7 {[%clk 0:02:56.1]} 11. Bb2 {[%clk 0:02:50.5]}
11... O-O {[%clk 0:02:56.4]} 12. O-O {[%clk 0:02:50.5]} 12... Nbd7 {[%clk
0:02:57.2]} 13. Qe2 {[%clk 0:02:49]} 13... Rc8 {[%clk 0:02:56.9]} 14. Rac1
{[%clk 0:02:46.8]} 14... Qb6 {[%clk 0:02:55.6]} 15. Rfd1 {[%clk 0:02:33.7]}
15... Rfd8 {[%clk 0:02:54.5]} 16. Ng5 {[%clk 0:02:32.7]} 16... h6 {[%clk
0:02:53.9]} 17. Nge4 {[%clk 0:02:32.9]} 17... Nxe4 {[%clk 0:02:54.3]} 18. Nxe4
{[%clk 0:02:33.3]} 18... Bxe4 {[%clk 0:02:39]} 19. Bxe4 {[%clk 0:02:32.5]} 19...
Bf6 {[%clk 0:02:39.5]} 20. Rxc8 {[%clk 0:02:20]} 20... Rxc8 {[%clk 0:02:36.3]}
21. Rxd7 {[%clk 0:02:12.7]} 21... Bxb2 {[%clk 0:02:35]} 22. Qxb2 {[%clk
0:02:11.9]} 22... Qxe3 {[%clk 0:02:35.6]} 1-0

[Event "Late-Titled-Tuesday-Blitz-February-06-2024"]
[Site "Chess.com"]
[Date "2024.02.06"]
[Round "9"]
[White "Korchmar_Vasiliy"]
[Black "winniethepooh04"]
[Result "1-0"]
[WhiteElo "2733"]
[BlackElo "2531"]
[TimeControl "180+1"]
[EndTime "15:39:54 PST"]
[Termination "Korchmar_Vasiliy won by resignation"]

1. e4 {[%clk 0:03:00.9]} 1... e6 {[%clk 0:03:00.2]} 2. d4 {[%clk 0:03:01.1]}
2... d5 {[%clk 0:03:00.8]} 3. e5 {[%clk 0:03:01.8]} 3... c5 {[%clk 0:03:00.8]}
4. c3 {[%clk 0:03:02.5]} 4... Nc6 {[%clk 0:03:01.4]} 5. Nf3 {[%clk 0:03:02.5]}
5... Bd7 {[%clk 0:03:02]} 6. Be2 {[%clk 0:03:02.3]} 6... Nge7 {[%clk 0:03:01.6]}
7. Na3 {[%clk 0:03:02.4]} 7... cxd4 {[%clk 0:03:01.9]} 8. cxd4 {[%clk
0:03:03.3]} 8... Ng6 {[%clk 0:03:02.3]} 9. Nc2 {[%clk 0:03:04]} 9... Be7 {[%clk
0:03:02.8]} 10. h4 {[%clk 0:03:03.5]} 10... Nxh4 {[%clk 0:02:59]} 11. Nxh4
{[%clk 0:03:03.3]} 11... Bxh4 {[%clk 0:02:59.1]} 12. Bd3 {[%clk 0:03:00.3]}
12... Be7 {[%clk 0:02:51.1]} 13. Qg4 {[%clk 0:03:00.1]} 13... g6 {[%clk
0:02:50]} 14. Bh6 {[%clk 0:03:00.4]} 14... Bf8 {[%clk 0:02:47.7]} 15. Bg5 {[%clk
0:02:59.1]} 15... Be7 {[%clk 0:02:47.1]} 16. Bh6 {[%clk 0:02:59.3]} 16... Bf8
{[%clk 0:02:47.2]} 17. O-O-O {[%clk 0:02:56.8]} 17... Qa5 {[%clk 0:02:36.2]} 18.
Kb1 {[%clk 0:02:55.3]} 18... Nb4 {[%clk 0:02:31.3]} 19. Nxb4 {[%clk 0:02:50.7]}
19... Qxb4 {[%clk 0:02:32.2]} 20. a3 {[%clk 0:02:45.8]} 20... Qb6 {[%clk
0:02:30.2]} 21. Bxf8 {[%clk 0:02:45.8]} 21... Kxf8 {[%clk 0:02:29.2]} 22. Rc1
{[%clk 0:02:34.2]} 22... Kg7 {[%clk 0:02:26.8]} 23. Qf4 {[%clk 0:02:33.7]} 23...
h5 {[%clk 0:02:15.2]} 24. Qf6+ {[%clk 0:02:33]} 24... Kg8 {[%clk 0:02:13.7]} 25.
Bxg6 {[%clk 0:02:33.5]} 25... fxg6 {[%clk 0:02:13.4]} 26. Qxg6+ {[%clk 0:02:34]}
26... Kf8 {[%clk 0:02:13.3]} 27. Qf6+ {[%clk 0:02:32.1]} 27... Kg8 {[%clk
0:02:13.1]} 28. Rc3 {[%clk 0:02:29.7]} 28... h4 {[%clk 0:02:12.2]} 29. Rg3+
{[%clk 0:02:29.2]} 1-0

[Event "Late-Titled-Tuesday-Blitz-February-06-2024"]
[Site "Chess.com"]
[Date "2024.02.06"]
[Round "9"]
[White "j_coca"]
[Black "Zavgorodniy_Sergiy"]
[Result "0-1"]
[WhiteElo "2453"]
[BlackElo "2593"]
[TimeControl "180+1"]
[EndTime "15:40:00 PST"]
[Termination "Zavgorodniy_Sergiy won by resignation"]

1. f4 {[%clk 0:03:00.9]} 1... d5 {[%clk 0:02:55.9]} 2. Nf3 {[%clk 0:02:45.3]}
2... c5 {[%clk 0:02:56.1]} 3. e3 {[%clk 0:02:45.2]} 3... Nf6 {[%clk 0:02:56.4]}
4. d4 {[%clk 0:02:45.2]} 4... g6 {[%clk 0:02:56.9]} 5. c3 {[%clk 0:02:45.2]}
5... Bg7 {[%clk 0:02:56.9]} 6. Bd3 {[%clk 0:02:45.3]} 6... O-O {[%clk
0:02:56.8]} 7. O-O {[%clk 0:02:45.6]} 7... b6 {[%clk 0:02:57.4]} 8. Nbd2 {[%clk
0:02:45.4]} 8... Ba6 {[%clk 0:02:57.3]} 9. Qe2 {[%clk 0:02:46]} 9... Bxd3 {[%clk
0:02:56.9]} 10. Qxd3 {[%clk 0:02:46.9]} 10... Nbd7 {[%clk 0:02:57.4]} 11. Ne5
{[%clk 0:02:46.8]} 11... Qc7 {[%clk 0:02:57]} 12. h3 {[%clk 0:02:45.9]} 12...
Qb7 {[%clk 0:02:56.7]} 13. g4 {[%clk 0:02:45.3]} 13... e6 {[%clk 0:02:56.9]} 14.
Nxd7 {[%clk 0:02:43.2]} 14... Qxd7 {[%clk 0:02:52.8]} 15. f5 {[%clk 0:02:39.6]}
15... exf5 {[%clk 0:02:51.7]} 16. gxf5 {[%clk 0:02:38.6]} 16... Rae8 {[%clk
0:02:50.8]} 17. Rf3 {[%clk 0:02:37.4]} 17... Bh6 {[%clk 0:02:40.5]} 18. Nf1
{[%clk 0:02:35.3]} 18... Ne4 {[%clk 0:02:36.1]} 19. fxg6 {[%clk 0:02:29.6]}
19... fxg6 {[%clk 0:02:34.6]} 20. Kg2 {[%clk 0:02:30]} 20... Rxf3 {[%clk
0:02:33]} 21. Kxf3 {[%clk 0:02:30.9]} 21... Qxh3+ {[%clk 0:02:32.5]} 22. Ke2
{[%clk 0:02:27.1]} 22... Rf8 {[%clk 0:02:26]} 23. Nd2 {[%clk 0:02:20.5]} 23...
Rf2+ {[%clk 0:02:06.9]} 24. Kd1 {[%clk 0:02:16.1]} 24... Rxd2+ {[%clk
0:02:06.1]} 25. Bxd2 {[%clk 0:02:17]} 25... Nf2+ {[%clk 0:02:06.4]} 0-1

[Event "Late-Titled-Tuesday-Blitz-February-06-2024"]
[Site "Chess.com"]
[Date "2024.02.06"]
[Round "9"]
[White "Gryffindorac8"]
[Black "ahkashefi2800"]
[Result "1-0"]
[WhiteElo "2397"]
[BlackElo "2528"]
[TimeControl "180+1"]
[EndTime "15:40:21 PST"]
[Termination "Gryffindorac8 won by resignation"]

1. d4 {[%clk 0:03:00.9]} 1... c5 {[%clk 0:02:59.8]} 2. d5 {[%clk 0:03:00.8]}
2... e6 {[%clk 0:02:54.5]} 3. c4 {[%clk 0:03:00.3]} 3... exd5 {[%clk 0:02:53.8]}
4. cxd5 {[%clk 0:03:00.3]} 4... d6 {[%clk 0:02:54.1]} 5. Nc3 {[%clk 0:02:59.4]}
5... g6 {[%clk 0:02:54.4]} 6. Nf3 {[%clk 0:02:58.3]} 6... Bg7 {[%clk 0:02:54.7]}
7. h3 {[%clk 0:02:57.9]} 7... Nf6 {[%clk 0:02:53.8]} 8. e4 {[%clk 0:02:57.5]}
8... O-O {[%clk 0:02:53.6]} 9. Be3 {[%clk 0:02:57.3]} 9... Re8 {[%clk
0:02:52.1]} 10. Nd2 {[%clk 0:02:56.5]} 10... Na6 {[%clk 0:02:51.8]} 11. Be2
{[%clk 0:02:49.9]} 11... Nc7 {[%clk 0:02:51.2]} 12. a4 {[%clk 0:02:48.5]} 12...
b6 {[%clk 0:02:50.5]} 13. O-O {[%clk 0:02:47.3]} 13... Ba6 {[%clk 0:02:50.2]}
14. Bxa6 {[%clk 0:02:39.8]} 14... Nxa6 {[%clk 0:02:49.6]} 15. Re1 {[%clk
0:02:25.5]} 15... Nc7 {[%clk 0:02:47.7]} 16. Qc2 {[%clk 0:02:22.2]} 16... Qd7
{[%clk 0:02:44.6]} 17. Nc4 {[%clk 0:02:18.4]} 17... Rab8 {[%clk 0:02:43.4]} 18.
Bf4 {[%clk 0:02:10.9]} 18... Bf8 {[%clk 0:02:40.9]} 19. Rad1 {[%clk 0:02:03.5]}
19... a6 {[%clk 0:02:38.4]} 20. e5 {[%clk 0:02:03]} 20... dxe5 {[%clk
0:02:37.8]} 21. Nxe5 {[%clk 0:02:02.8]} 21... Qc8 {[%clk 0:02:37.5]} 22. d6
{[%clk 0:01:56.8]} 22... Ne6 {[%clk 0:02:37.2]} 23. d7 {[%clk 0:01:56.1]} 23...
Nxd7 {[%clk 0:02:37.2]} 24. Nxd7 {[%clk 0:01:57]} 24... Nxf4 {[%clk 0:02:36.7]}
25. Nf6+ {[%clk 0:01:52]} 25... Kh8 {[%clk 0:02:33.7]} 26. Rxe8 {[%clk
0:01:49.8]} 26... Qb7 {[%clk 0:02:33.5]} 27. Qe4 {[%clk 0:01:47.2]} 1-0